fUST/lending_fUST_20260423
["ID","MTS","AMOUNT","RATE_DAILY","PERIOD"]
[420993102,1776876640434,-151.0,0.000171,2]
[420993103,1776876640443,-151.0,0.000171,2]
[420993104,1776876640452,-151.0,0.000171,2]
[420993105,1776876640461,-151.0,0.000171,2]
[420993106,1776876640471,-151.0,0.000171,2]
[420993107,1776876640480,-151.0,0.000171,2]
[420993108,1776876640489,-151.0,0.000171,2]
[420993109,1776876640499,-2552.99,0.00017115,2]
[420993110,1776876640508,-581.81,0.00017116,2]
[420993111,1776876640517,-581.81,0.00017116,2]
[420993112,1776876640527,-581.81,0.00017116,2]
[420993113,1776876640536,-581.81,0.00017116,2]
[420993114,1776876640546,-581.81,0.00017116,2]
[420993115,1776876640556,-581.81,0.00017116,2]
[420993116,1776876640565,-581.81,0.00017116,2]
[420993117,1776876640574,-581.81,0.00017116,2]
[420993118,1776876640584,-581.81,0.00017116,2]
[420993119,1776876640594,-581.81,0.00017116,2]
[420993120,1776876640603,-581.81,0.00017116,2]
[420993121,1776876640612,-581.81,0.00017116,2]
[420993122,1776876640622,-581.81,0.00017116,2]
[420993123,1776876640631,-581.81,0.00017116,2]
[420993124,1776876640640,-581.81,0.00017116,2]
[420993125,1776876640650,-581.81,0.00017116,2]
[420993126,1776876640660,-581.81,0.00017116,2]
[420993127,1776876640669,-581.81,0.00017116,2]
[420993128,1776876640679,-581.81,0.00017116,2]
[420993129,1776876640688,-581.81,0.00017116,2]
[420993130,1776876640698,-581.81,0.00017116,2]
[420993131,1776876640708,-581.85689853,0.00017116,2]
[420993132,1776876640717,-1046.84,0.00017116,2]
[420993133,1776876640727,-1046.84,0.00017116,2]
[420993134,1776876640736,-1046.84,0.00017116,2]
[420993135,1776876640745,-1046.84,0.00017116,2]
[420993136,1776876640755,-1046.84,0.00017116,2]
[420993137,1776876640764,-1046.84,0.00017116,2]
[420993138,1776876640774,-1046.84,0.00017116,2]
[420993139,1776876640784,-1046.84,0.00017116,2]
[420993140,1776876640793,-1046.84,0.00017116,2]
[420993141,1776876640802,-1046.84,0.00017116,2]
[420993142,1776876640811,-1046.84,0.00017116,2]
[420993143,1776876640821,-1046.84,0.00017116,2]
[420993144,1776876640831,-1046.84,0.00017116,2]
[420993145,1776876640840,-1046.84,0.00017116,2]
[420993146,1776876640850,-1046.84,0.00017116,2]
[420993147,1776876640859,-1046.84,0.00017116,2]
[420993148,1776876640869,-1046.84,0.00017116,2]
[420993149,1776876640879,-1046.84,0.00017116,2]
[420993150,1776876640889,-1046.84,0.00017116,2]
[420993151,1776876640898,-1046.84,0.00017116,2]
[420993152,1776876640909,-1046.84,0.00017116,2]
[420993153,1776876640919,-1046.91028063,0.00017116,2]
[420993154,1776876640928,-845.12,0.00017116,2]
[420993155,1776876640938,-845.12,0.00017116,2]
[420993156,1776876640948,-845.12,0.00017116,2]
[420993157,1776876640957,-845.12,0.00017116,2]
[420993158,1776876640967,-845.12,0.00017116,2]
[420993159,1776876640977,-845.12,0.00017116,2]
[420993160,1776876640987,-845.12,0.00017116,2]
[420993161,1776876640997,-845.12,0.00017116,2]
[420993162,1776876641007,-845.12,0.00017116,2]
[420993163,1776876641017,-845.12,0.00017116,2]
[420993164,1776876641027,-845.12,0.00017116,2]
[420993165,1776876641038,-845.12,0.00017116,2]
[420993166,1776876641047,-845.12,0.00017116,2]
[420993167,1776876641056,-845.12,0.00017116,2]
[420993168,1776876641066,-845.12,0.00017116,2]
[420993169,1776876641075,-845.12,0.00017116,2]
[420993170,1776876641085,-845.12,0.00017116,2]
[420993171,1776876641094,-845.12,0.00017116,2]
[420993172,1776876641104,-845.12,0.00017116,2]
[420993173,1776876641113,-845.12,0.00017116,2]
[420993174,1776876641123,-845.12,0.00017116,2]
[420993175,1776876641132,-845.25747176,0.00017116,2]
[420993176,1776876641141,-500.0,0.00017116,2]
[420993177,1776876641150,-500.0,0.00017116,2]
[420993178,1776876641159,-500.0,0.00017116,2]
[420993179,1776876641169,-500.0,0.00017116,2]
[420993180,1776876641178,-500.0,0.00017116,2]
[420993181,1776876641188,-500.0,0.00017116,2]
[420993182,1776876641197,-263.54,0.00017116,2]
[420993183,1776876641207,-1928.43,0.00017116,2]
[420993184,1776876641216,-1928.43,0.00017116,2]
[420993185,1776876641226,-1928.43,0.00017116,2]
[420993186,1776876641235,-1928.43,0.00017116,2]
[420993187,1776876641245,-1928.43,0.00017116,2]
[420993188,1776876641255,-1928.43,0.00017116,2]
[420993189,1776876641265,-1928.43,0.00017116,2]
[420993190,1776876641275,-1928.43,0.00017116,2]
[420993191,1776876641284,-1928.43,0.00017116,2]
[420993192,1776876641294,-1928.43,0.00017116,2]
[420993193,1776876641304,-1928.43,0.00017116,2]
[420993194,1776876641313,-1928.43,0.00017116,2]
[420993195,1776876641322,-1928.43,0.00017116,2]
[420993196,1776876641332,-1928.43,0.00017116,2]
[420993197,1776876641341,-1928.43,0.00017116,2]
[420993198,1776876641350,-1928.43,0.00017116,2]
[420993199,1776876641359,-1928.43,0.00017116,2]
[420993200,1776876641368,-1928.43,0.00017116,2]
[420993201,1776876641378,-1928.43,0.00017116,2]
[420993202,1776876641387,-1928.43,0.00017116,2]
[420993203,1776876641396,-1928.43,0.00017116,2]
[420993204,1776876641406,-1928.65827409,0.00017116,2]
[420993205,1776876641416,-2552.99,0.00017116,2]
[420993206,1776876641425,-2552.99,0.00017116,2]
[420993207,1776876641435,-2552.99,0.00017116,2]
[420993208,1776876641444,-2552.99,0.00017116,2]
[420993209,1776876641454,-2552.99,0.00017116,2]
[420993210,1776876641463,-2552.99,0.00017116,2]
[420993211,1776876641473,-2552.99,0.00017116,2]
[420993212,1776876641483,-2552.99,0.00017116,2]
[420993213,1776876641492,-2552.99,0.00017116,2]
[420993214,1776876641502,-2552.99,0.00017116,2]
[420993215,1776876641513,-2552.99,0.00017116,2]
[420993216,1776876641527,-2552.99,0.00017116,2]
[420993217,1776876641537,-1833.66120043,0.00017116,2]
[420993218,1776876641551,-719.32879957,0.00017116,2]
[420993219,1776876641560,-2552.99,0.00017116,2]
[420993220,1776876641570,-2552.99,0.00017116,2]
[420993221,1776876641579,-2552.99,0.00017116,2]
[420993222,1776876641589,-2552.99,0.00017116,2]
[420993223,1776876641599,-1982.50180338,0.00017116,2]
[420993224,1776876641611,-570.48819662,0.00017116,2]
[420993225,1776876641620,-1873.34979335,0.00017116,2]
[420993227,1776876641632,-679.64020665,0.00017116,2]
[420993229,1776876641641,-748.59979335,0.00017116,2]
[420993262,1776876646568,-1804.39020665,0.00017116,2]
[420993264,1776876646578,-2553.02826216,0.00017116,2]
[420993266,1776876646588,-151.0,0.00017116,2]
[420993268,1776876646598,-500.0,0.00017116,2]
[420993270,1776876646608,-500.0,0.00017116,2]
[420993272,1776876646617,-500.0,0.00017116,2]
[420993274,1776876646626,-500.0,0.00017116,2]
[420993276,1776876646635,-500.0,0.00017116,2]
[420993278,1776876646645,-500.0,0.00017116,2]
[420993280,1776876646655,-500.0,0.00017116,2]
[420993282,1776876646665,-500.0,0.00017116,2]
[420993284,1776876646674,-500.0,0.00017116,2]
[420993286,1776876646684,-500.0,0.00017116,2]
[420993288,1776876646693,-152.7810087,0.00017116,2]
[420993290,1776876646703,-594.395947,0.00017116,2]
[420993292,1776876646713,-594.395947,0.00017116,2]
[420993295,1776876646723,-594.395947,0.00017116,2]
[420993297,1776876646733,-594.395947,0.00017116,2]
[420993298,1776876646743,-151.0,0.00017118,2]
[420993300,1776876646752,-308.85424,0.00017118,2]
[420993301,1776876646762,-275.545138,0.00017118,2]
[420993302,1776876646771,-308.85424,0.00017118,2]
[420993303,1776876646781,-275.545138,0.00017118,2]
[420993304,1776876646790,-834.50214,0.00017118,2]
[420993305,1776876646800,-308.85424,0.00017118,2]
[420993306,1776876646809,-275.545138,0.00017118,2]
[420993307,1776876646819,-834.50214,0.00017118,2]
[420993308,1776876646828,-308.85424,0.00017118,2]
[420993309,1776876646837,-275.545138,0.00017118,2]
[420993310,1776876647072,-834.50214,0.00017118,2]
[420993311,1776876647082,-834.50214,0.00017118,2]
[420993312,1776876647092,-1371.052524,0.00017118,2]
[420993313,1776876647101,-1371.052524,0.00017118,2]
[420993314,1776876647111,-1371.052524,0.00017118,2]
[420993315,1776876647121,-1371.052524,0.00017118,2]
[420993316,1776876647131,-151.0,0.00017118,2]
[420993317,1776876647141,-151.0,0.00017118,2]
[420993318,1776876647151,-151.0,0.00017118,2]
[420993319,1776876647160,-293.554873,0.00017118,2]
[420993320,1776876647170,-151.0,0.00017118,2]
[420993321,1776876647179,-151.0,0.00017118,2]
[420993322,1776876647189,-690.34126,0.00017118,2]
[420993323,1776876647198,-690.34126,0.00017118,2]
[420993324,1776876647208,-690.34126,0.00017118,2]
[420993325,1776876647217,-690.34126,0.00017118,2]
[420993326,1776876647226,-500.0,0.00017172,2]
[420993327,1776876647236,-500.0,0.00017172,2]
[420993328,1776876647245,-834.08,0.00017172,2]
[420993329,1776876647255,-1023.25,0.00017172,2]
[420993330,1776876647265,-500.0,0.00017173,2]
[420993331,1776876647274,-500.0,0.00017173,2]
[420993332,1776876647284,-500.0,0.00017173,2]
[420993333,1776876647293,-500.0,0.00017173,2]
[420993334,1776876647302,-500.0,0.00017173,2]
[420993335,1776876647311,-500.0,0.00017173,2]
[420993336,1776876647320,-504.05190961,0.00017173,2]
[420993337,1776876647330,-647.58690155,0.00017173,2]
[420993338,1776876647339,-208.26411119,0.00017173,2]
[420993339,1776876647349,-536.85540735,0.00017173,2]
[420993340,1776876647358,-161.02746367,0.00017173,2]
[420993341,1776876647368,-271.94690145,0.00017173,2]
[420993342,1776876647378,-500.18565856,0.00017173,2]
[420993343,1776876647388,-500.0,0.00017173,2]
[420993344,1776876647397,-531.72120492,0.00017173,2]
[420993345,1776876647407,-500.0,0.00017173,2]
[420993346,1776876647416,-500.0,0.00017173,2]
[420993347,1776876647426,-501.25981471,0.00017173,2]
[420993348,1776876647436,-502.62934024,0.00017173,2]
[420993349,1776876647446,-151.0,0.000172,2]
[420993350,1776876647455,-151.0,0.000172,2]
[420993351,1776876647465,-151.0,0.000172,2]
[420993352,1776876647474,-151.0,0.000172,2]
[420993353,1776876647484,-151.0,0.000172,2]
[420993354,1776876647493,-151.0,0.000172,2]
[420993355,1776876647503,-151.0,0.000172,2]
[420993356,1776876647513,-151.0,0.000172,2]
[420993357,1776876647523,-151.0,0.000172,2]
[420993358,1776876647532,-151.0,0.000172,2]
[420993359,1776876647542,-500.0,0.00017217,2]
[420993360,1776876647551,-500.0,0.00017217,2]
[420993361,1776876647561,-834.08,0.00017217,2]
[420993362,1776876647570,-1023.25,0.00017217,2]
[420993363,1776876647580,-802.2,0.00017218,2]
[420993364,1776876647590,-802.2,0.00017218,2]
[420993365,1776876647600,-802.2,0.00017218,2]
[420993366,1776876647609,-802.2,0.00017218,2]
[420993367,1776876647618,-802.2,0.00017218,2]
[420993368,1776876647627,-802.2,0.00017218,2]
[420993369,1776876647637,-802.2,0.00017218,2]
[420993370,1776876647647,-802.2,0.00017218,2]
[420993371,1776876647656,-802.2,0.00017218,2]
[420993372,1776876647666,-802.2,0.00017218,2]
[420993373,1776876647676,-802.2,0.00017218,2]
[420993374,1776876647685,-802.2,0.00017218,2]
[420993375,1776876647695,-802.2,0.00017218,2]
[420993376,1776876647704,-802.2,0.00017218,2]
[420993377,1776876647714,-802.2,0.00017218,2]
[420993378,1776876647723,-500.0,0.00017218,2]
[420993379,1776876647733,-500.0,0.00017218,2]
[420993380,1776876647742,-500.0,0.00017218,2]
[420993381,1776876647752,-500.0,0.00017218,2]
[420993382,1776876647762,-500.0,0.00017218,2]
[420993383,1776876647771,-500.0,0.00017218,2]
[420993384,1776876647779,-500.0,0.00017218,2]
[420993385,1776876647788,-500.0,0.00017218,2]
[420993386,1776876647798,-500.0,0.00017218,2]
[420993387,1776876647807,-500.0,0.00017218,2]
[420993388,1776876647816,-500.0,0.00017218,2]
[420993389,1776876647827,-569.26450839,0.00017218,2]
[420993390,1776876647836,-500.0,0.00017218,2]
[420993391,1776876647846,-28.65262818,0.00017218,2]
[420993392,1776876647859,-471.34737182,0.00017218,2]
[420993393,1776876647868,-500.0,0.00017218,2]
[420993394,1776876647877,-500.0,0.00017218,2]
[420993395,1776876647887,-500.0,0.00017218,2]
[420993396,1776876647896,-500.0,0.00017218,2]
[420993397,1776876647907,-500.0,0.00017218,2]
[420993398,1776876647917,-500.0,0.00017218,2]
[420993399,1776876647926,-500.0,0.00017218,2]
[420993400,1776876647935,-500.0,0.00017218,2]
[420993401,1776876647945,-500.0,0.00017218,2]
[420993402,1776876647954,-500.0,0.00017218,2]
[420993403,1776876647964,-500.0,0.00017218,2]
[420993404,1776876647973,-500.0,0.00017218,2]
[420993405,1776876647983,-513.22749135,0.00017218,2]
[420993406,1776876647992,-834.08,0.00017218,2]
[420993407,1776876648002,-834.08,0.00017218,2]
[420993408,1776876648011,-834.08,0.00017218,2]
[420993409,1776876648020,-834.08,0.00017218,2]
[420993410,1776876648029,-834.08,0.00017218,2]
[420993411,1776876648038,-834.08,0.00017218,2]
[420993412,1776876648047,-834.08,0.00017218,2]
[420993413,1776876648057,-834.08,0.00017218,2]
[420993414,1776876648066,-834.08,0.00017218,2]
[420993415,1776876648075,-834.08,0.00017218,2]
[420993416,1776876648084,-834.08,0.00017218,2]
[420993417,1776876648094,-834.08,0.00017218,2]
[420993418,1776876648103,-834.08,0.00017218,2]
[420993419,1776876648112,-834.08,0.00017218,2]
[420993420,1776876648121,-834.08,0.00017218,2]
[420993421,1776876648131,-834.08,0.00017218,2]
[420993422,1776876648140,-834.08,0.00017218,2]
[420993423,1776876648150,-834.08,0.00017218,2]
[420993424,1776876648160,-834.08,0.00017218,2]
[420993425,1776876648169,-834.08,0.00017218,2]
[420993426,1776876648179,-834.10140071,0.00017218,2]
[420993427,1776876648187,-1023.25,0.00017218,2]
[420993428,1776876648196,-1023.25,0.00017218,2]
[420993429,1776876648206,-1023.25,0.00017218,2]
[420993430,1776876648215,-1023.25,0.00017218,2]
[420993431,1776876648226,-1023.25,0.00017218,2]
[420993432,1776876648235,-1023.25,0.00017218,2]
[420993433,1776876648245,-1023.25,0.00017218,2]
[420993434,1776876648254,-1023.25,0.00017218,2]
[420993435,1776876648263,-1023.25,0.00017218,2]
[420993436,1776876648273,-104.28476045,0.00017218,2]
[420993437,1776876750522,200.0,0.00021893,120]
[420993438,1776876810816,200.0,0.00024215,120]
[420993440,1776876870709,200.0,0.00024433,120]
[420993441,1776876990469,200.0,0.00024186,120]
[420993444,1776877105015,3020.0,0.0002465,120]
[420993445,1776877110543,200.0,0.00023454,120]
[420993446,1776877170480,200.0,0.00023357,120]
[420993448,1776877230479,200.0,0.00022576,120]
[420993450,1776877262224,-683.04836346,7.6e-05,2]
[420993451,1776877262257,-676.15113512,7.661e-05,2]
[420993452,1776877262294,-934.09876526,7.761e-05,2]
[420993453,1776877262307,-348.77795108,7.761e-05,2]
[420993454,1776877262317,-334.27041238,7.861e-05,2]
[420993455,1776877262329,-676.15113512,7.861e-05,2]
[420993456,1776877262342,-879.18075006,7.861e-05,2]
[420993457,1776877262352,-403.69596628,7.961e-05,2]
[420993458,1776877290487,200.0,0.00024352,120]
[420993462,1776877337144,3000.0,0.00024658,120]
[420993472,1776877705965,5427.81,0.00024658,120]
[420993478,1776877832178,-4622.745,7.495e-05,10]
[420993479,1776877832188,-5000.0,7.571e-05,10]
[420993480,1776877832198,-150.0,7.686e-05,2]
[420993481,1776877832208,-1200.0,7.723e-05,2]
[420993482,1776877832218,-300.0,7.878e-05,2]
[420993483,1776877832228,-666.55500008,7.961e-05,2]
[420993484,1776877832240,-1131.15780273,7.961e-05,2]
[420993485,1776877832250,-2496.32787878,8.061e-05,2]
[420993486,1776877832259,-2594.47433038,8.161e-05,2]
[420993487,1776877832269,-2987.53989181,8.261e-05,2]
[420993488,1776877832280,-3103.05346,8.361e-05,2]
[420993489,1776877832289,-266.5062706,8.635e-05,2]
[420993491,1776877832299,-3380.60545325,8.684e-05,2]
[420993493,1776877832308,-3709.77904122,9.144e-05,2]
[420993494,1776877832317,-3773.67101469,9.605e-05,2]
[420993495,1776877832327,-177.0,9.686e-05,2]
[420993496,1776877832336,-4158.10401781,0.00010065,2]
[420993497,1776877832346,-4559.80213756,0.00010986,2]
[420993498,1776877832356,-204.0,0.00011685,2]
[420993499,1776877832365,-5298.66603335,0.00012828,2]
[420993500,1776877832375,-500.0,0.00012898,2]
[420993501,1776877832384,-500.0,0.00012898,2]
[420993502,1776877832394,-500.0,0.00012898,2]
[420993503,1776877832404,-500.0,0.00012898,2]
[420993504,1776877832414,-500.0,0.00012898,2]
[420993505,1776877832423,-500.0,0.00012898,2]
[420993506,1776877832433,-500.0,0.00012898,2]
[420993507,1776877832442,-392.40364829,0.00012898,2]
[420993508,1776877832451,-500.0,0.00012898,2]
[420993509,1776877832460,-500.0,0.00012898,2]
[420993510,1776877832470,-221.30896648,0.00012898,2]
[420993511,1776877832479,-500.0,0.00012898,2]
[420993512,1776877832489,-500.0,0.00012898,2]
[420993513,1776877832498,-500.0,0.00012898,2]
[420993514,1776877832507,-422.38655062,0.00012898,2]
[420993515,1776877832516,-500.0,0.00012898,2]
[420993516,1776877832526,-1000.0,0.00013699,2]
[420993517,1776877832535,-500.0,0.0001415,2]
[420993518,1776877832544,-5875.78105005,0.00014209,2]
[420993519,1776877832554,-151.0,0.00014661,2]
[420993520,1776877832563,-151.0,0.00014661,2]
[420993521,1776877832573,-151.0,0.00014661,2]
[420993522,1776877832582,-151.0,0.00014661,2]
[420993523,1776877832591,-151.0,0.00014661,2]
[420993524,1776877832601,-151.0,0.00014661,2]
[420993525,1776877832610,-151.0,0.00014661,2]
[420993526,1776877832620,-151.0,0.00014661,2]
[420993527,1776877832629,-151.0,0.00014661,2]
[420993528,1776877832639,-300.89714103,0.00014661,2]
[420993529,1776877832648,-206.99369548,0.00014661,2]
[420993530,1776877832657,-6009.16959288,0.0001467,2]
[420993531,1776877832667,-1000.0,0.00014698,2]
[420993532,1776877832676,-6269.60644849,0.0001513,2]
[420993533,1776877832686,-1000.0,0.00015246,2]
[420993534,1776877832695,-500.0,0.00015306,2]
[420993535,1776877832704,-500.0,0.00015306,2]
[420993536,1776877832713,-502.97219114,0.00015306,2]
[420993537,1776877832723,-1036.18,0.00015306,2]
[420993538,1776877832732,-591.09,0.00015306,2]
[420993539,1776877832741,-500.0,0.00015306,2]
[420993540,1776877832751,-500.0,0.00015306,2]
[420993541,1776877832760,-592.55,0.00015306,2]
[420993542,1776877832770,-2652.99,0.00015306,2]
[420993543,1776877832780,-15380.3736,0.00015307,2]
[420993544,1776877832789,-236.94,0.000154,2]
[420993545,1776877832799,-157.95,0.000156,2]
[420993546,1776877832808,-162.65,0.00015688,2]
[420993547,1776877832817,-1129.69,0.00015689,2]
[420993548,1776877832827,-257.37165069,0.00015689,2]
[420993549,1776877833117,-500.0,0.0001569,2]
[420993550,1776877833142,-500.0,0.00015806,2]
[420993551,1776877833151,-500.0,0.00015806,2]
[420993552,1776877833161,-2982.9974559,0.00015807,2]
[420993553,1776877833172,-2119.2839208,0.00015968,2]
[420993554,1776877833181,-901.6415333,0.00015968,2]
[420993555,1776877833191,-600.0,0.00016003,2]
[420993556,1776877833200,-547.28369892,0.0001605,2]
[420993557,1776877833210,-547.28369892,0.0001605,2]
[420993558,1776877833220,-547.28369892,0.0001605,2]
[420993559,1776877833229,-547.28369892,0.0001605,2]
[420993560,1776877833239,-547.28369892,0.0001605,2]
[420993561,1776877833249,-547.28369892,0.0001605,2]
[420993562,1776877833258,-547.28369892,0.0001605,2]
[420993563,1776877833267,-547.28369892,0.0001605,2]
[420993564,1776877833277,-547.28369892,0.0001605,2]
[420993565,1776877833287,-547.28369892,0.0001605,2]
[420993566,1776877833296,-547.28369892,0.0001605,2]
[420993567,1776877833306,-547.28369892,0.0001605,2]
[420993568,1776877833316,-547.28369892,0.0001605,2]
[420993569,1776877833325,-547.28369892,0.0001605,2]
[420993570,1776877833335,-547.28369892,0.0001605,2]
[420993571,1776877833344,-547.28369892,0.0001605,2]
[420993572,1776877833354,-547.28369892,0.0001605,2]
[420993573,1776877833363,-547.28369892,0.0001605,2]
[420993574,1776877833374,-547.28369892,0.0001605,2]
[420993575,1776877833383,-838.87845508,0.0001605,2]
[420993576,1776877833393,-838.87845508,0.0001605,2]
[420993577,1776877833403,-838.87845508,0.0001605,2]
[420993578,1776877833413,-838.87845508,0.0001605,2]
[420993579,1776877833423,-838.87845508,0.0001605,2]
[420993580,1776877833432,-838.87845508,0.0001605,2]
[420993581,1776877833442,-838.87845508,0.0001605,2]
[420993582,1776877833452,-838.87845508,0.0001605,2]
[420993583,1776877833462,-838.87845508,0.0001605,2]
[420993584,1776877833471,-838.87845508,0.0001605,2]
[420993585,1776877833480,-6661.94736045,0.00016051,2]
[420993586,1776877833490,-154.82,0.00016097,2]
[420993587,1776877833500,-151.0,0.000166,2]
[420993588,1776877833509,-151.0,0.000166,2]
[420993589,1776877833519,-151.0,0.000167,2]
[420993590,1776877833530,-151.0,0.000167,2]
[420993591,1776877833540,-151.0,0.000167,2]
[420993592,1776877833549,-151.0,0.000167,2]
[420993593,1776877833558,-151.0,0.000167,2]
[420993595,1776877833568,-151.0,0.000167,2]
[420993597,1776877833578,-151.0,0.000167,2]
[420993599,1776877833588,-151.0,0.000167,2]
[420993601,1776877833598,-169.49806149,0.00016773,2]
[420993603,1776877833608,-500.0,0.00016773,2]
[420993605,1776877833617,-271.94690145,0.00016773,2]
[420993607,1776877833626,-22207.83444902,0.00016773,2]
[420993947,1776877838432,-500.0,0.00013698,2]
[420993948,1776877838441,-286.41,0.00016773,2]
[420993949,1776877838643,-168.16,0.00013698,2]
[420993950,1776877838654,-1198505.3097068,0.00016773,2]
[420993951,1776877838664,-151.0,0.000168,2]
[420993952,1776877838674,-151.0,0.000168,2]
[420993953,1776877838684,-151.0,0.000168,2]
[420993954,1776877838694,-151.0,0.000168,2]
[420993955,1776877838704,-169.75,0.00016824,2]
[420993956,1776877838715,-579.68809239,0.00016872,2]
[420993957,1776877838724,-500.0,0.00016873,2]
[420993958,1776877838735,-647.58690155,0.00016873,2]
[420993959,1776877838745,-504.05190961,0.00016873,2]
[420993960,1776877838754,-500.0,0.00016873,2]
[420993961,1776877838764,-500.0,0.00016873,2]
[420993962,1776877838773,-208.26411119,0.00016873,2]
[420993963,1776877838783,-500.0,0.00016899,2]
[420993964,1776877838792,-500.0,0.00016899,2]
[420993965,1776877838802,-1036.18,0.00016899,2]
[420993966,1776877838812,-591.09,0.00016899,2]
[420993967,1776877838822,-592.55,0.00016899,2]
[420993968,1776877838831,-2652.99,0.00016899,2]
[420993969,1776877838840,-151.0,0.000169,2]
[420993970,1776877838850,-151.0,0.000169,2]
[420993971,1776877838860,-151.0,0.000169,2]
[420993972,1776877838870,-151.0,0.000169,2]
[420993973,1776877838881,-151.0,0.000169,2]
[420993974,1776877838891,-151.0,0.000169,2]
[420993975,1776877838900,-1129.69,0.00016911,2]
[420993976,1776877838910,-635.43626332,0.00016967,2]
[420993977,1776877838920,-554.40158338,0.00016973,2]
[420993978,1776877838929,-502.62934024,0.00016973,2]
[420993979,1776877838939,-500.18565856,0.00016973,2]
[420993980,1776877838949,-500.5937421,0.00016973,2]
[420993981,1776877838959,-531.72120492,0.00016973,2]
[420993982,1776877838968,-501.25981471,0.00016973,2]
[420993983,1776877838978,-500.0,0.00016973,2]
[420993984,1776877838987,-500.0,0.00016973,2]
[420993985,1776877838997,-500.0,0.00016973,2]
[420993986,1776877839007,-500.0,0.00016973,2]
[420993987,1776877839017,-161.02746367,0.00016973,2]
[420993988,1776877839027,-500.0,0.00016973,2]
[420993989,1776877839036,-536.85540735,0.00016973,2]
[420993990,1776877839045,-500.0,0.00016997,2]
[420993991,1776877839055,-528.65262818,0.00016997,2]
[420993992,1776877839064,-1036.18,0.00016997,2]
[420993993,1776877839074,-591.09,0.00016997,2]
[420993994,1776877839084,-592.55,0.00016997,2]
[420993995,1776877839094,-2652.99,0.00016997,2]
[420993996,1776877839103,-500.0,0.00016998,2]
[420993997,1776877839113,-500.0,0.00016998,2]
[420993998,1776877839123,-500.0,0.00016998,2]
[420993999,1776877839133,-500.0,0.00016998,2]
[420994000,1776877839143,-500.0,0.00016998,2]
[420994001,1776877839153,-500.0,0.00016998,2]
[420994002,1776877839162,-500.0,0.00016998,2]
[420994003,1776877839172,-500.0,0.00016998,2]
[420994004,1776877839182,-500.0,0.00016998,2]
[420994005,1776877839192,-500.0,0.00016998,2]
[420994006,1776877839202,-569.26450839,0.00016998,2]
[420994007,1776877839212,-1036.18,0.00016998,2]
[420994008,1776877839221,-1036.18,0.00016998,2]
[420994009,1776877839230,-1036.18,0.00016998,2]
[420994010,1776877839240,-1036.18,0.00016998,2]
[420994011,1776877839250,-1036.18,0.00016998,2]
[420994012,1776877839260,-1036.18,0.00016998,2]
[420994013,1776877839270,-1036.18,0.00016998,2]
[420994014,1776877839280,-1036.18,0.00016998,2]
[420994015,1776877839290,-1036.18,0.00016998,2]
[420994016,1776877839299,-1036.18,0.00016998,2]
[420994017,1776877839309,-1036.18,0.00016998,2]
[420994018,1776877839318,-1036.18,0.00016998,2]
[420994019,1776877839327,-1036.18,0.00016998,2]
[420994020,1776877839336,-1036.18,0.00016998,2]
[420994021,1776877839345,-1036.18,0.00016998,2]
[420994022,1776877839354,-1036.18,0.00016998,2]
[420994023,1776877839367,-1036.18,0.00016998,2]
[420994024,1776877839377,-1036.18,0.00016998,2]